fUSD/lending_fUSD_20240423
["ID","MTS","AMOUNT","RATE_DAILY","PERIOD"]
[323314082,1713886232579,-683.75,0.00011735,2]
[323314083,1713886232588,-808.58,0.00011735,2]
[323314084,1713886232599,-669.73,0.00011735,2]
[323314085,1713886232609,-500.0,0.00011735,2]
[323314086,1713886232618,-869.59,0.00011735,2]
[323314087,1713886232628,-3147.86,0.00011735,2]
[323314088,1713886232637,-500.0,0.00011735,2]
[323314089,1713886232647,-500.0,0.00011735,2]
[323314090,1713886232657,-500.0,0.00011735,2]
[323314091,1713886232667,-500.0,0.00011735,2]
[323314092,1713886232677,-847.01,0.00011735,2]
[323314093,1713886232686,-548.45,0.00011735,2]
[323314094,1713886232696,-500.0,0.00011735,2]
[323314095,1713886232706,-500.0,0.00011735,2]
[323314096,1713886232715,-536.23,0.00011735,2]
[323314097,1713886232725,-615.4,0.00011735,2]
[323314098,1713886232735,-2711.27563378,0.00011735,2]
[323314099,1713886232748,-2018.89436622,0.00011735,2]
[323314100,1713886232757,-500.0,0.00011735,2]
[323314101,1713886232767,-2404.73,0.00011735,2]
[323314102,1713886232776,-621.52,0.00011735,2]
[323314103,1713886232786,-817.37,0.00011735,2]
[323314104,1713886232795,-716.49,0.00011735,2]
[323314105,1713886232805,-500.0,0.00011735,2]
[323314106,1713886232814,-3320.71,0.00011735,2]
[323314107,1713886232823,-2505.26,0.00011735,2]
[323314108,1713886232833,-500.0,0.00011735,2]
[323314109,1713886232842,-1529.49,0.00011735,2]
[323314110,1713886232852,-2070.19,0.00011735,2]
[323314111,1713886232863,-500.0,0.00011735,2]
[323314112,1713886232873,-500.0,0.00011735,2]
[323314113,1713886232882,-1574.12,0.00011735,2]
[323314114,1713886232892,-1369.19,0.00011735,2]
[323314115,1713886232902,-566.97,0.00011735,2]
[323314116,1713886232912,-537.53,0.00011735,2]
[323314117,1713886232921,-528.51,0.00011735,2]
[323314118,1713886232930,-1034.55,0.00011735,2]
[323314119,1713886232940,-581.35,0.00011735,2]
[323314120,1713886232950,-1170.45,0.00011735,2]
[323314121,1713886232960,-1425.45,0.00011735,2]
[323314122,1713886232970,-281.72890475,0.00011735,2]
[323314123,1713886232979,-668.13,0.00011735,2]
[323314124,1713886232989,-626.61,0.00011735,2]
[323314125,1713886232998,-500.0,0.00011735,2]
[323314126,1713886233008,-500.0,0.00011735,2]
[323314127,1713886233020,-210.75,0.00011735,2]
[323314128,1713886233030,-500.0,0.00011735,2]
[323314129,1713886233040,-500.0,0.00011735,2]
[323314130,1713886233050,-594.86,0.00011735,2]
[323314131,1713886233060,-585.93,0.00011735,2]
[323314132,1713886233070,-500.0,0.00011735,2]
[323314133,1713886233080,-500.0,0.00011735,2]
[323314134,1713886233089,-500.0,0.00011735,2]
[323314135,1713886233103,-500.0,0.00011735,2]
[323314136,1713886233112,-500.0,0.00011735,2]
[323314137,1713886233123,-3520.38,0.00011735,2]
[323314138,1713886233133,-500.0,0.00011735,2]
[323314139,1713886233142,-500.0,0.00011735,2]
[323314140,1713886233152,-500.0,0.00011735,2]
[323314141,1713886233162,-684.57,0.00011735,2]
[323314142,1713886233171,-500.0,0.00011735,2]
[323314143,1713886233182,-500.0,0.00011735,2]
[323314144,1713886233191,-12557.98,0.00011735,2]
[323314145,1713886233201,-500.0,0.00011735,2]
[323314146,1713886233210,-925.63,0.00011735,2]
[323314147,1713886233220,-500.0,0.00011735,2]
[323314148,1713886233230,-500.0,0.00011735,2]
[323314149,1713886233240,-1537.3,0.00011735,2]
[323314150,1713886233249,-500.0,0.00011735,2]
[323314151,1713886233259,-500.0,0.00011735,2]
[323314152,1713886233269,-313.70598498,0.00011736,2]
[323314153,1713886233279,-3382.14833468,0.00011736,2]
[323314154,1713886233289,-477.17397627,0.00011736,2]
[323314155,1713886233299,-343.26553462,0.00011736,2]
[323314156,1713886233309,-500.0,0.00011736,2]
[323314157,1713886233319,-500.0,0.00011736,2]
[323314158,1713886233330,-500.0,0.00011736,2]
[323314159,1713886233341,-500.0,0.00011736,2]
[323314160,1713886233351,-500.0,0.00011736,2]
[323314161,1713886233362,-500.0,0.00011736,2]
[323314162,1713886233371,-576.68,0.00011736,2]
[323314163,1713886233381,-698.65,0.00011736,2]
[323314164,1713886233391,-500.0,0.00011736,2]
[323314165,1713886233401,-500.0,0.00011736,2]
[323314166,1713886233410,-500.0,0.00011736,2]
[323314167,1713886233420,-500.0,0.00011736,2]
[323314168,1713886233429,-500.0,0.00011736,2]
[323314169,1713886233440,-262.7018894,0.00011736,2]
[323314170,1713886233451,-500.0,0.00011736,2]
[323314171,1713886233460,-500.0,0.00011736,2]
[323314172,1713886233469,-572.56,0.00011736,2]
[323314173,1713886233478,-500.0,0.00011736,2]
[323314174,1713886233487,-1034.7,0.00011736,2]
[323314175,1713886233497,-500.0,0.00011736,2]
[323314176,1713886233506,-462.13100908,0.00011736,2]
[323314177,1713886233519,-37.86899092,0.00011736,2]
[323314178,1713886233529,-500.0,0.00011736,2]
[323314179,1713886233541,-697.38,0.00011736,2]
[323314180,1713886233550,-399.57601105,0.00011736,2]
[323314181,1713886233560,-806.62,0.00011736,2]
[323314182,1713886233569,-500.0,0.00011736,2]
[323314183,1713886233579,-500.0,0.00011736,2]
[323314184,1713886233588,-500.0,0.00011736,2]
[323314185,1713886233598,-832.45,0.00011736,2]
[323314186,1713886233607,-161.03499803,0.00011736,2]
[323314187,1713886233636,-338.96500197,0.00011736,2]
[323314188,1713886233646,-500.0,0.00011736,2]
[323314189,1713886233655,-500.0,0.00011736,2]
[323314190,1713886233665,-681.62,0.00011736,2]
[323314191,1713886233675,-500.0,0.00011736,2]
[323314192,1713886233686,-472.35722492,0.00011736,2]
[323314212,1713886237893,-500.0,0.00011735,2]
[323314214,1713886237902,-500.0,0.00011735,2]
[323314216,1713886237912,-500.0,0.00011735,2]
[323314218,1713886237921,-500.0,0.00011735,2]
[323314220,1713886237930,-620.75321951,0.00011735,2]
[323314227,1713886238177,-727.47466602,0.00011735,2]
[323314228,1713886238205,-347.61533398,0.00011735,2]
[323314229,1713886238214,-500.0,0.00011735,2]
[323314230,1713886238223,-27.64277508,0.00011736,2]
[323314231,1713886238233,-247.04015108,0.00011736,2]
[323314232,1713886238242,-667.48,0.00011736,2]
[323314234,1713886238251,-500.0,0.00011736,2]
[323314236,1713886238260,-500.0,0.00011736,2]
[323314239,1713886238270,-543.85,0.00011736,2]
[323314240,1713886238279,-500.0,0.00011736,2]
[323314243,1713886238289,-500.0,0.00011736,2]
[323314244,1713886238298,-500.0,0.00011736,2]
[323314246,1713886238307,-576.81,0.00011736,2]
[323314248,1713886238317,-500.0,0.00011736,2]
[323314250,1713886238326,-500.0,0.00011736,2]
[323314253,1713886238335,-500.0,0.00011736,2]
[323314255,1713886238344,-500.0,0.00011736,2]
[323314257,1713886238354,-500.0,0.00011736,2]
[323314259,1713886238363,-500.0,0.00011736,2]
[323314261,1713886238371,-500.0,0.00011736,2]
[323314263,1713886238381,-500.0,0.00011736,2]
[323314265,1713886238391,-197.88569639,0.00011736,2]
[323314266,1713886238399,-554.98,0.00011736,2]
[323314268,1713886238409,-500.0,0.00011736,2]
[323314270,1713886238420,-500.0,0.00011736,2]
[323314272,1713886238429,-569.51,0.00011736,2]
[323314274,1713886238442,-567.18604347,0.00011736,2]
[323314277,1713886238454,-245.53395653,0.00011736,2]
[323314279,1713886238464,-500.0,0.00011736,2]
[323314281,1713886238474,-527.02,0.00011736,2]
[323314283,1713886238483,-500.0,0.00011736,2]
[323314285,1713886238492,-500.0,0.00011736,2]
[323314287,1713886238502,-500.0,0.00011736,2]
[323314289,1713886238511,-1129.59,0.00011736,2]
[323314291,1713886238520,-500.0,0.00011736,2]
[323314293,1713886238530,-500.0,0.00011736,2]
[323314295,1713886238539,-500.0,0.00011736,2]
[323314297,1713886238548,-500.0,0.00011736,2]
[323314299,1713886238557,-572.46,0.00011736,2]
[323314301,1713886238565,-500.0,0.00011736,2]
[323314303,1713886238574,-500.0,0.00011736,2]
[323314305,1713886238583,-500.0,0.00011736,2]
[323314307,1713886238592,-500.0,0.00011736,2]
[323314309,1713886238601,-500.0,0.00011736,2]
[323314311,1713886238610,-500.0,0.00011736,2]
[323314313,1713886238619,-500.0,0.00011736,2]
[323314315,1713886238628,-500.0,0.00011736,2]
[323314317,1713886238638,-500.0,0.00011736,2]
[323314319,1713886238647,-500.0,0.00011736,2]
[323314321,1713886238656,-500.0,0.00011736,2]
[323314323,1713886238666,-500.0,0.00011736,2]
[323314325,1713886238676,-500.0,0.00011736,2]
[323314327,1713886238688,-500.0,0.00011736,2]
[323314329,1713886238697,-500.0,0.00011736,2]
[323314331,1713886238706,-500.0,0.00011736,2]
[323314333,1713886238715,-500.0,0.00011736,2]
[323314334,1713886238724,-500.0,0.00011736,2]
[323314335,1713886238734,-500.0,0.00011736,2]
[323314336,1713886238743,-500.0,0.00011736,2]
[323314337,1713886238752,-580.11,0.00011736,2]
[323314338,1713886238762,-551.94,0.00011736,2]
[323314339,1713886238771,-500.0,0.00011736,2]
[323314340,1713886238780,-500.0,0.00011736,2]
[323314341,1713886238789,-500.0,0.00011736,2]
[323314342,1713886238798,-500.0,0.00011736,2]
[323314343,1713886238807,-500.0,0.00011736,2]
[323314344,1713886238817,-500.0,0.00011736,2]
[323314345,1713886238827,-500.0,0.00011736,2]
[323314347,1713886238836,-500.0,0.00011736,2]
[323314349,1713886238846,-500.0,0.00011736,2]
[323314350,1713886238855,-500.0,0.00011736,2]
[323314353,1713886238865,-544.58,0.00011736,2]
[323314355,1713886238876,-500.0,0.00011736,2]
[323314357,1713886238885,-500.0,0.00011736,2]
[323314358,1713886238894,-500.0,0.00011736,2]
[323314360,1713886238903,-500.0,0.00011736,2]
[323314363,1713886238912,-500.0,0.00011736,2]
[323314365,1713886238922,-150.0,0.00011736,2]
[323314366,1713886238931,-500.0,0.00011736,2]
[323314369,1713886238942,-500.0,0.00011736,2]
[323314370,1713886238951,-500.0,0.00011736,2]
[323314372,1713886238960,-500.0,0.00011736,2]
[323314375,1713886238969,-500.0,0.00011736,2]
[323314376,1713886238979,-500.0,0.00011736,2]
[323314378,1713886238988,-596.24,0.00011736,2]
[323314381,1713886238997,-500.0,0.00011736,2]
[323314383,1713886239007,-500.0,0.00011736,2]
[323314384,1713886239018,-500.0,0.00011736,2]
[323314386,1713886239027,-500.0,0.00011736,2]
[323314389,1713886239040,-500.0,0.00011736,2]
[323314391,1713886239050,-500.0,0.00011736,2]
[323314393,1713886239061,-500.0,0.00011736,2]
[323314394,1713886239071,-659.19,0.00011736,2]
[323314396,1713886239081,-500.0,0.00011736,2]
[323314398,1713886239091,-571.23,0.00011736,2]
[323314401,1713886239100,-500.0,0.00011736,2]
[323314402,1713886239112,-530.04,0.00011736,2]
[323314404,1713886239121,-500.0,0.00011736,2]
[323314406,1713886239130,-637.71,0.00011736,2]
[323314408,1713886239139,-500.0,0.00011736,2]
[323314410,1713886239149,-500.0,0.00011736,2]
[323314412,1713886239159,-500.0,0.00011736,2]
[323314414,1713886239168,-500.72,0.00011736,2]
[323314416,1713886239177,-500.0,0.00011736,2]
[323314419,1713886239188,-500.0,0.00011736,2]
[323314421,1713886239198,-500.0,0.00011736,2]
[323314423,1713886239207,-500.0,0.00011736,2]
[323314425,1713886239217,-500.0,0.00011736,2]
[323314427,1713886239227,-507.99,0.00011736,2]
[323314428,1713886239236,-500.0,0.00011736,2]
[323314431,1713886239246,-859.97,0.00011736,2]
[323314432,1713886239255,-2044.62,0.00011736,2]
[323314435,1713886239265,-500.0,0.00011736,2]
[323314437,1713886239274,-623.97,0.00011736,2]
[323314438,1713886239283,-500.0,0.00011736,2]
[323314440,1713886239293,-500.0,0.00011736,2]
[323314442,1713886239306,-1525.97,0.00011736,2]
[323314444,1713886239314,-3245.42,0.00011736,2]
[323314446,1713886239324,-500.0,0.00011736,2]
[323314448,1713886239333,-4748.59,0.00011736,2]
[323314450,1713886239342,-723.5,0.00011736,2]
[323314452,1713886239352,-1785.87,0.00011736,2]
[323314454,1713886239361,-500.0,0.00011736,2]
[323314456,1713886239370,-500.0,0.00011736,2]
[323314458,1713886239380,-500.0,0.00011736,2]
[323314460,1713886239389,-500.0,0.00011736,2]
[323314462,1713886239398,-500.0,0.00011736,2]
[323314464,1713886239407,-734.86,0.00011736,2]
[323314466,1713886239416,-500.0,0.00011736,2]
[323314468,1713886239425,-500.0,0.00011736,2]
[323314470,1713886239435,-500.0,0.00011736,2]
[323314472,1713886239445,-500.0,0.00011736,2]
[323314474,1713886239455,-500.0,0.00011736,2]
[323314476,1713886239465,-576.92,0.00011736,2]
[323314478,1713886239474,-624.86,0.00011736,2]
[323314480,1713886239484,-1148.3,0.00011736,2]
[323314482,1713886239493,-500.0,0.00011736,2]
[323314485,1713886239503,-563.34,0.00011736,2]
[323314487,1713886239513,-500.0,0.00011736,2]
[323314489,1713886239522,-3761.15,0.00011736,2]
[323314491,1713886239531,-6119.06,0.00011736,2]
[323314493,1713886239541,-500.0,0.00011736,2]
[323314495,1713886239550,-1416.23,0.00011736,2]
[323314497,1713886239559,-500.0,0.00011736,2]
[323314499,1713886239568,-500.0,0.00011736,2]
[323314500,1713886239578,-500.0,0.00011736,2]
[323314503,1713886239588,-500.0,0.00011736,2]
[323314504,1713886239598,-1211.4,0.00011736,2]
[323314506,1713886239608,-500.0,0.00011736,2]
[323314508,1713886239618,-532.58,0.00011736,2]
[323314510,1713886239628,-500.0,0.00011736,2]
[323314513,1713886239638,-764.79,0.00011736,2]
[323314514,1713886239647,-500.0,0.00011736,2]
[323314516,1713886239656,-500.0,0.00011736,2]
[323314518,1713886239666,-500.0,0.00011736,2]
[323314520,1713886239676,-261.78317059,0.00011736,2]
[323314524,1713886239699,-238.21682941,0.00011736,2]
[323314526,1713886239708,-500.0,0.00011736,2]
[323314528,1713886239718,-500.0,0.00011736,2]
[323314530,1713886239727,-3202.90219181,0.00011736,2]
[323314533,1713886239755,-346.49127393,0.00011736,2]
[323314538,1713886239781,-14636.93653426,0.00011736,2]
[323314541,1713886239791,-673.75,0.00011736,2]
[323314543,1713886239800,-500.0,0.00011736,2]
[323314545,1713886239810,-584.77,0.00011736,2]
[323314547,1713886239819,-500.0,0.00011736,2]
[323314549,1713886239829,-1873.54,0.00011736,2]
[323314551,1713886239839,-500.0,0.00011736,2]
[323314553,1713886239849,-686.24,0.00011736,2]
[323314556,1713886239859,-500.0,0.00011736,2]
[323314559,1713886239868,-536.08,0.00011736,2]
[323314561,1713886239877,-554.12,0.00011736,2]
[323314563,1713886239886,-500.0,0.00011736,2]
[323314565,1713886239896,-500.0,0.00011736,2]
[323314568,1713886239906,-899.33,0.00011736,2]
[323314570,1713886239915,-917.9,0.00011736,2]
[323314572,1713886239924,-500.0,0.00011736,2]
[323314573,1713886239933,-500.0,0.00011736,2]
[323314576,1713886239945,-526.19,0.00011736,2]
[323314578,1713886239955,-1239.3,0.00011736,2]
[323314580,1713886239964,-500.0,0.00011736,2]
[323314581,1713886239973,-535.13,0.00011736,2]
[323314583,1713886239983,-601.69,0.00011736,2]
[323314585,1713886239992,-500.0,0.00011736,2]
[323314587,1713886240002,-196.44256937,0.00011736,2]
[323314590,1713886240012,-781.72,0.00011736,2]
[323314591,1713886240022,-500.0,0.00011736,2]
[323314594,1713886240035,-500.0,0.00011736,2]
[323314596,1713886240044,-500.0,0.00011736,2]
[323314598,1713886240053,-500.0,0.00011736,2]
[323314599,1713886240062,-500.0,0.00011736,2]
[323314601,1713886240072,-500.0,0.00011736,2]
[323314604,1713886240082,-500.0,0.00011736,2]
[323314606,1713886240091,-1355.21,0.00011736,2]
[323314608,1713886240100,-500.0,0.00011736,2]
[323314609,1713886240111,-874.49,0.00011736,2]
[323314611,1713886240120,-500.0,0.00011736,2]
[323314614,1713886240130,-500.0,0.00011736,2]
[323314616,1713886240139,-970.91,0.00011736,2]
[323314618,1713886240148,-351.87,0.00011736,2]
[323314620,1713886240157,-500.0,0.00011736,2]
[323314622,1713886240167,-500.0,0.00011736,2]
[323314624,1713886240176,-500.0,0.00011736,2]
[323314626,1713886240185,-500.0,0.00011736,2]
[323314628,1713886240196,-500.0,0.00011736,2]
[323314630,1713886240205,-703.24,0.00011736,2]
[323314632,1713886240214,-500.0,0.00011736,2]
[323314634,1713886240224,-500.0,0.00011736,2]
[323314635,1713886240234,-491.95921461,0.00011736,2]
[323314638,1713886240243,-500.0,0.00011736,2]
[323314640,1713886240253,-500.0,0.00011736,2]
[323314641,1713886240262,-1326.19,0.00011736,2]
[323314643,1713886240271,-500.0,0.00011736,2]
[323314645,1713886240281,-500.0,0.00011736,2]
[323314647,1713886240290,-500.0,0.00011736,2]
[323314649,1713886240299,-500.0,0.00011736,2]
[323314651,1713886240308,-500.80293936,0.00011736,2]
[323314653,1713886240318,-500.0,0.00011736,2]
[323314655,1713886240328,-776.44,0.00011736,2]
[323314657,1713886240337,-1666.06,0.00011736,2]
[323314659,1713886240346,-500.0,0.00011736,2]
[323314661,1713886240355,-500.0,0.00011736,2]
[323314663,1713886240365,-500.0,0.00011736,2]
[323314665,1713886240374,-649.03681946,0.00011736,2]
[323314667,1713886240383,-500.0,0.00011736,2]
[323314669,1713886240392,-616.73,0.00011736,2]
[323314671,1713886240401,-875.11,0.00011736,2]
[323314673,1713886240411,-500.0,0.00011736,2]
[323314676,1713886240421,-500.0,0.00011736,2]
[323314678,1713886240431,-500.0,0.00011736,2]
[323314680,1713886240442,-915.63,0.00011736,2]
[323314683,1713886240451,-540.59,0.00011736,2]
[323314685,1713886240460,-500.0,0.00011737,2]
[323314689,1713886240469,-500.0,0.00011737,2]
[323314691,1713886240479,-500.0,0.00011737,2]
[323314693,1713886240489,-500.0,0.00011737,2]
[323314695,1713886240498,-500.0,0.00011737,2]
[323314697,1713886240508,-500.0,0.00011737,2]
[323314699,1713886240518,-500.0,0.00011737,2]
[323314701,1713886240527,-142.59192292,0.00011737,2]
[323314761,1713886241107,-291.44554907,0.00011737,2]
[323314764,1713886241119,-65.96252801,0.00011737,2]
[323314766,1713886241128,-500.0,0.00011737,2]
[323314768,1713886241138,-162.23,0.00011737,2]
[323314769,1713886241147,-500.0,0.00011737,2]
[323314770,1713886241156,-500.0,0.00011737,2]
[323314771,1713886241165,-500.0,0.00011737,2]
[323314772,1713886241174,-500.0,0.00011737,2]
[323314773,1713886241183,-500.0,0.00011737,2]
[323314774,1713886241193,-404.57,0.00011737,2]
[323314775,1713886241203,-500.0,0.00011737,2]
[323314776,1713886241212,-500.0,0.00011738,2]
[323314777,1713886241221,-1127.76879468,0.00011772,2]
[323314778,1713886241230,-777.77086525,0.00012,2]
[323314779,1713886241239,-3069.43072971,0.00012,2]
[323314781,1713886241248,-2000.0,0.00012,2]
[323314783,1713886241257,-786.99155585,0.00012008,2]
[323314785,1713886241267,-487.22450388,0.00012009,2]
[323314787,1713886241276,-500.0,0.00012009,2]
[323314789,1713886241285,-500.0,0.00012009,2]
[323314791,1713886241295,-610.96,0.00012009,2]
[323314793,1713886241305,-500.0,0.00012009,2]
[323314795,1713886241314,-500.0,0.00012009,2]
[323314797,1713886241324,-500.0,0.00012009,2]
[323314799,1713886241334,-500.0,0.00012009,2]
[323314801,1713886241343,-500.0,0.00012009,2]
[323314803,1713886241353,-463.15611991,0.00012009,2]
[323314805,1713886241362,-500.0,0.00012009,2]
[323314807,1713886241375,-500.0,0.00012009,2]
[323314809,1713886241384,-609.87,0.00012009,2]
[323314812,1713886241394,-500.0,0.00012009,2]
[323314814,1713886241404,-500.0,0.00012009,2]
[323314816,1713886241415,-500.0,0.00012009,2]
[323314818,1713886241425,-500.0,0.00012009,2]
[323314820,1713886241436,-500.0,0.00012009,2]
[323314822,1713886241449,-500.0,0.00012009,2]
[323314824,1713886241459,-500.0,0.00012009,2]
[323314826,1713886241469,-500.0,0.00012009,2]
[323314828,1713886241479,-500.0,0.00012009,2]
[323314831,1713886241490,-500.0,0.00012009,2]
[323314832,1713886241499,-500.0,0.00012009,2]
[323314835,1713886241509,-500.0,0.00012009,2]
[323314836,1713886241518,-500.0,0.00012009,2]
[323314839,1713886241528,-500.0,0.00012009,2]
[323314840,1713886241538,-500.0,0.00012009,2]
[323314842,1713886241547,-500.0,0.00012009,2]
[323314845,1713886241556,-500.0,0.00012009,2]
[323314847,1713886241566,-500.0,0.00012009,2]
[323314848,1713886241575,-500.0,0.00012009,2]
[323314851,1713886241584,-523.89,0.00012009,2]
[323314853,1713886241596,-500.0,0.00012009,2]
[323314855,1713886241605,-500.0,0.00012009,2]
[323314857,1713886241615,-500.0,0.00012009,2]
[323314859,1713886241624,-500.0,0.00012009,2]
[323314861,1713886241634,-569.62,0.00012009,2]
[323314863,1713886241643,-500.0,0.00012009,2]
[323314865,1713886241653,-500.0,0.00012009,2]
[323314867,1713886241662,-500.0,0.00012009,2]
[323314869,1713886241671,-500.0,0.00012009,2]
[323314871,1713886241680,-500.0,0.00012009,2]
[323314873,1713886241690,-619.72,0.00012009,2]
[323314875,1713886241699,-500.0,0.00012009,2]
[323314877,1713886241708,-528.46,0.00012009,2]
[323314879,1713886241717,-500.0,0.00012009,2]
[323314881,1713886241726,-500.0,0.00012009,2]
[323314883,1713886241735,-500.0,0.00012009,2]
[323314885,1713886241744,-500.0,0.00012009,2]
[323314887,1713886241754,-500.0,0.00012009,2]
[323314889,1713886241763,-302.14,0.00012009,2]
[323314891,1713886241772,-500.0,0.00012009,2]
[323314893,1713886241782,-500.0,0.00012009,2]
[323314895,1713886241791,-500.0,0.00012009,2]
[323314897,1713886241801,-500.0,0.00012009,2]
[323314899,1713886241810,-500.0,0.00012009,2]
[323314901,1713886241820,-500.0,0.00012009,2]
[323314903,1713886241829,-500.0,0.00012009,2]
[323314905,1713886241839,-500.0,0.00012009,2]
[323314907,1713886241849,-500.0,0.00012009,2]
[323314909,1713886241858,-500.0,0.00012009,2]
[323314911,1713886241868,-500.0,0.00012009,2]
[323314913,1713886241877,-500.0,0.00012009,2]
[323314915,1713886241886,-500.0,0.00012009,2]
[323314917,1713886241896,-606.15,0.00012009,2]
[323314919,1713886241906,-500.0,0.00012009,2]
[323314921,1713886241915,-500.0,0.00012009,2]
[323314923,1713886241924,-500.0,0.00012009,2]
[323314925,1713886241934,-509.08,0.00012009,2]
[323314927,1713886241945,-500.0,0.00012009,2]
[323314929,1713886241955,-500.0,0.00012009,2]
[323314931,1713886241964,-500.0,0.00012009,2]
[323314933,1713886241973,-500.0,0.00012009,2]
[323314935,1713886241983,-500.0,0.00012009,2]
[323314937,1713886241992,-500.0,0.00012009,2]
[323314939,1713886242001,-500.0,0.00012009,2]
[323314941,1713886242011,-500.0,0.00012009,2]
[323314943,1713886242022,-500.0,0.00012009,2]
[323314945,1713886242034,-500.0,0.00012009,2]
[323314947,1713886242044,-609.78198074,0.00012009,2]
[323314949,1713886242053,-500.0,0.00012009,2]
[323314951,1713886242063,-500.0,0.00012009,2]
[323314953,1713886242072,-500.0,0.00012009,2]
[323314955,1713886242082,-500.0,0.00012009,2]
[323314984,1713886242330,-500.0,0.00012009,2]
[323314986,1713886242340,-500.0,0.00012009,2]
[323314988,1713886242350,-500.0,0.00012009,2]
[323314990,1713886242359,-500.0,0.00012009,2]
[323314992,1713886242368,-500.0,0.00012009,2]
[323314994,1713886242378,-500.0,0.00012009,2]
[323314996,1713886242387,-500.0,0.00012009,2]
[323314998,1713886242397,-500.0,0.00012009,2]
[323315000,1713886242406,-500.0,0.00012009,2]
[323315002,1713886242415,-500.0,0.00012009,2]
[323315004,1713886242425,-579.74,0.00012009,2]
[323315006,1713886242435,-500.0,0.00012009,2]
[323315008,1713886242445,-390.12,0.00012009,2]
[323315010,1713886242454,-500.0,0.00012009,2]
[323315012,1713886242463,-500.0,0.00012009,2]
[323315014,1713886242472,-500.0,0.00012009,2]
[323315016,1713886242481,-281.62,0.00012009,2]
[323315018,1713886242491,-500.0,0.00012009,2]
[323315020,1713886242500,-595.2792832,0.00012009,2]
[323315022,1713886242509,-221.70240603,0.00012009,2]
[323315024,1713886242519,-500.0,0.00012009,2]
[323315026,1713886242528,-500.0,0.00012009,2]
[323315028,1713886242537,-500.0,0.00012009,2]
[323315030,1713886242546,-288.56,0.00012009,2]
[323315032,1713886242555,-500.0,0.00012009,2]
[323315034,1713886242564,-500.0,0.00012009,2]
[323315036,1713886242573,-330.18,0.00012009,2]
[323315038,1713886242583,-500.0,0.00012009,2]
[323315040,1713886242592,-500.0,0.00012009,2]
[323315042,1713886242601,-500.0,0.00012009,2]
[323315044,1713886242610,-500.0,0.00012009,2]
[323315047,1713886242619,-500.0,0.00012009,2]
[323315050,1713886242629,-500.0,0.00012009,2]
[323315053,1713886242638,-507.75,0.00012009,2]
[323315056,1713886242647,-539.78,0.00012009,2]
[323315058,1713886242660,-500.0,0.00012009,2]
[323315060,1713886242670,-500.0,0.00012009,2]
[323315062,1713886242679,-152.82009455,0.00012009,2]
[323315064,1713886242688,-500.0,0.00012009,2]
[323315066,1713886242700,-500.0,0.00012009,2]
[323315068,1713886242709,-500.0,0.00012009,2]
[323315070,1713886242720,-500.0,0.00012009,2]